bitfinex/quotes_SOLUSD_20250829
["timestamp","ask_amount","ask_price","bid_price","bid_amount"]
[1756483401375,16.86634461,204.61,204.56,16.86634461]
[1756483401676,16.86634461,204.6,204.55,16.86634461]
[1756483401886,17.10236988,204.65,204.58,16.86634461]
[1756483401887,4.88639139,204.65,204.58,16.86634461]
[1756483402059,3.72666314,204.66,204.61,16.86634461]
[1756483402265,3.72666314,204.66,204.63,16.86634461]
[1756483402489,3.72666314,204.66,204.57,26.0]
[1756483402490,3.72666314,204.66,204.64,17.56634461]
[1756483402695,3.72666314,204.66,204.65,17.56634461]
[1756483402890,3.72666314,204.66,204.65,16.86634461]
[1756483403062,3.72666314,204.66,204.65,17.56634461]
[1756483403264,3.72666314,204.66,204.65,22.452736]
[1756483403465,1.92666314,204.66,204.65,23.0835367]
[1756483403678,1.92666314,204.66,204.65,0.7]
[1756483403878,1.92666314,204.66,204.65,16.86634461]
[1756483404082,1.92666314,204.66,204.63,0.48868689]
[1756483404272,1.92666314,204.66,204.65,16.86634461]
[1756483404471,1.92666314,204.66,204.61,16.86634461]
[1756483404758,19.50300775,204.66,204.6,16.86634461]
[1756483404960,1.92666314,204.66,204.62,0.14216157]
[1756483405180,1.92666314,204.66,204.65,21.89489757]
[1756483405489,1.92666314,204.66,204.65,21.752736]
[1756483405864,1.92666314,204.66,204.64,0.48866301]
[1756483406081,1.92666314,204.66,204.41,0.1]
[1756483406082,20.0,204.56,204.41,0.1]
[1756483406386,0.21126196,204.62,204.26,0.09]
[1756483406387,33.73268922,204.42,204.26,0.03]
[1756483406587,16.86634461,204.27,204.26,0.03]
[1756483407192,22.47182608,204.27,204.26,0.03]
[1756483407498,23.31426991,204.27,204.26,0.03]
[1756483408192,23.80293292,204.27,204.26,0.03]
[1756483408492,0.71,204.32,204.26,0.03]
[1756483408671,22.60426991,204.28,204.26,0.03]
[1756483409082,0.71,204.32,204.26,0.03]
[1756483409286,0.48866301,204.31,204.26,0.03]
[1756483409473,1.19866301,204.42,204.3,22.60426991]
[1756483409670,6.09056786,204.42,204.3,22.60426991]
[1756483409872,1.19866301,204.42,204.3,22.60426991]
[1756483410097,0.48866301,204.42,204.33,22.60426991]
[1756483410273,22.60426991,204.37,204.31,23.30426991]
[1756483410477,0.71,204.42,204.31,23.30426991]
[1756483410704,22.60426991,204.38,204.32,22.60426991]
[1756483410939,22.60426991,204.34,204.28,22.60426991]
[1756483411203,22.60426991,204.31,204.26,0.03]
[1756483411600,22.60426991,204.34,204.28,22.60426991]
[1756483411974,22.60426991,204.32,204.26,0.03]
[1756483412176,22.60426991,204.32,204.26,22.63426991]
[1756483412378,22.60426991,204.32,204.26,48.63426991]
[1756483412575,22.60426991,204.33,204.27,22.60426991]
[1756483412801,22.60426991,204.33,204.28,22.60426991]
[1756483413109,1.19866301,204.38,204.28,22.60426991]
[1756483413275,1.19866301,204.38,204.26,0.03]
[1756483413276,22.60426991,204.35,204.3,4.8947626]
[1756483413478,0.71,204.38,204.3,4.8947626]
[1756483413675,22.60426991,204.34,204.3,4.8947626]
[1756483413913,0.71,204.33,204.26,4.92566481]
[1756483414200,22.60426991,204.3,204.26,4.92570403]
[1756483414576,22.60426991,204.31,204.26,27.52997394]
[1756483414791,1.19866301,204.37,204.26,4.92570403]
[1756483414991,22.60426991,204.3,204.26,4.92570403]
[1756483415317,22.60426991,204.27,204.26,0.03]
[1756483415816,0.71,204.29,204.26,0.03]
[1756483415817,0.71,204.32,204.26,0.03]
[1756483415997,22.60426991,204.29,204.26,0.03]
[1756483416196,5.60202116,204.4,204.28,22.60426991]
[1756483416501,1.19866301,204.39,204.26,26.03]
[1756483416700,1.19866301,204.39,204.27,22.60426991]
[1756483416701,22.60426991,204.33,204.27,22.60426991]
[1756483416895,22.60426991,204.35,204.29,22.60426991]
[1756483417095,22.60426991,204.34,204.29,22.60426991]
[1756483417291,22.60426991,204.38,204.33,22.60426991]
[1756483417518,5.11335815,204.4,204.33,22.60426991]
[1756483417818,22.60426991,204.38,204.32,22.60426991]
[1756483418114,22.60426991,204.37,204.3,17.80166911]
[1756483418317,22.60426991,204.37,204.32,22.60426991]
[1756483418497,22.60426991,204.38,204.33,22.60426991]
[1756483418898,0.48866301,204.43,204.34,0.67]
[1756483419103,10.21934483,204.51,204.4,22.60426991]
[1756483419306,10.21934483,204.51,204.43,30.89164995]
[1756483419616,32.82361474,204.51,204.45,22.60426991]
[1756483419793,10.21934483,204.51,204.47,22.60426991]
[1756483421021,26.48866301,204.65,204.44,0.67]
[1756483421022,13.59559401,204.64,204.5,48.60426991]
[1756483421318,13.59559401,204.62,204.56,30.88833652]
[1756483421508,0.48866301,204.61,204.56,53.49260643]
[1756483421705,0.48866301,204.61,204.57,22.60426991]
[1756483421918,0.48866301,204.61,204.6,22.60426991]
[1756483422219,0.06,204.69,204.63,26.0]
[1756483422523,0.06,204.69,204.66,22.60426991]
[1756483422706,0.06,204.69,204.65,22.60426991]
[1756483423020,0.06,204.69,204.66,22.60426991]
[1756483423216,0.06,204.69,204.66,27.49031658]
[1756483423415,23.37426991,204.69,204.64,22.60426991]
[1756483423623,0.71,204.68,204.63,22.60426991]
[1756483423918,0.06,204.69,204.65,22.60426991]
[1756483424423,23.31426991,204.68,204.62,27.49114755]
[1756483424625,13.59559401,204.67,204.58,4.88787163]
[1756483424827,23.31426991,204.66,204.6,22.60426991]
[1756483425000,23.31426991,204.66,204.61,22.60426991]
[1756483425202,0.71,204.65,204.59,22.60426991]
[1756483425418,22.60426991,204.63,204.57,22.60426991]
[1756483425724,13.59559401,204.57,204.42,4.89188924]
[1756483425903,22.60426991,204.53,204.47,22.60426991]
[1756483426103,22.60426991,204.51,204.43,12.22867333]
[1756483426314,22.60426991,204.49,204.44,22.60426991]
[1756483426514,0.71,204.52,204.46,22.60426991]
[1756483426698,22.60426991,204.54,204.48,22.60426991]
[1756483426894,0.71,204.56,204.48,22.60426991]
[1756483427097,22.60426991,204.54,204.49,22.60426991]
[1756483427299,0.71,204.53,204.47,22.60426991]
[1756483427522,0.71,204.62,204.52,22.60426991]
[1756483427821,0.71,204.62,204.48,0.67]
[1756483427822,23.31426991,204.62,204.57,22.60426991]
[1756483428119,22.60426991,204.58,204.47,0.4890693]
[1756483428321,22.60426991,204.52,204.47,22.60426991]
[1756483428527,0.71,204.55,204.49,22.60426991]
[1756483428710,0.71,204.59,204.52,22.60426991]
[1756483429024,22.60426991,204.57,204.51,22.60426991]
[1756483429222,22.60426991,204.62,204.56,4.88854125]
[1756483429424,0.71,204.63,204.56,4.88854125]
[1756483429818,0.71,204.63,204.58,22.60426991]
[1756483430011,0.71,204.63,204.56,17.10989439]
[1756483430337,22.60426991,204.64,204.56,4.88854125]
[1756483430628,22.60426991,204.57,204.47,22.60426991]
[1756483430933,22.60426991,204.53,204.47,22.60426991]
[1756483431227,12.27359128,204.69,204.53,4.88925829]
[1756483431525,22.60426991,204.57,204.53,4.88925829]
[1756483431721,22.60426991,204.54,204.47,23.27426991]
[1756483432020,0.71,204.56,204.49,22.60426991]
[1756483432221,0.71,204.56,204.45,4.89117143]
[1756483432429,22.60426991,204.53,204.45,4.89117143]
[1756483432635,22.60426991,204.54,204.48,22.60426991]
[1756483432841,0.71,204.56,204.45,17.11910001]
[1756483433042,22.60426991,204.49,204.39,4.89260727]
[1756483433224,48.60426991,204.6,204.39,4.89260727]
[1756483433225,22.60426991,204.45,204.39,4.89260727]
[1756483433412,22.60426991,204.44,204.39,4.89260727]
[1756483433822,22.60426991,204.46,204.4,22.60426991]
[1756483434025,22.60426991,204.46,204.41,22.60426991]
[1756483434422,22.60426991,204.44,204.39,4.89260727]
[1756483434626,22.60426991,204.43,204.39,4.89260727]
[1756483434924,0.71,204.45,204.39,4.89260727]
[1756483434925,22.60426991,204.47,204.42,22.60426991]
[1756483435223,22.60426991,204.46,204.4,22.60426991]
[1756483435431,22.60426991,204.44,204.41,4.89212856]
[1756483435818,13.59559401,204.49,204.41,4.89212856]
[1756483436135,22.60426991,204.42,204.39,4.89237893]
[1756483436631,22.60426991,204.42,204.37,22.60426991]
[1756483436831,22.60426991,204.42,204.33,51.28]
[1756483436832,22.60426991,204.38,204.27,12.90849528]
[1756483437134,22.60426991,204.32,204.27,5.56548147]
[1756483437431,17.04197651,204.31,204.26,4.92572113]
[1756483437600,0.71,204.36,204.28,17.04197651]
[1756483437806,17.04197651,204.34,204.29,17.04197651]
[1756483438001,17.04197651,204.4,204.33,17.04197651]
[1756483438233,17.04197651,204.39,204.36,0.03]
[1756483438605,17.04197651,204.37,204.36,0.03]
[1756483439113,17.75197651,204.37,204.36,0.03]
[1756483439309,12.227352,204.46,204.36,0.03]
[1756483439516,22.57732576,204.38,204.36,0.03]
[1756483439926,22.57732576,204.37,204.36,0.03]
[1756483440420,36.17291977,204.37,204.36,0.03]
[1756483440626,40.27739084,204.37,204.36,0.03]
[1756483440929,13.59559401,204.36,204.34,0.03]
[1756483441119,25.97179683,204.35,204.26,0.03]
[1756483441316,22.57732576,204.28,204.26,0.03]
[1756483441533,0.67,204.35,204.26,22.60732576]
[1756483441847,0.67,204.39,204.29,22.57732576]
[1756483442057,22.57732576,204.34,204.28,22.57732576]
[1756483442343,0.67,204.33,204.26,0.03]
[1756483442526,23.24732576,204.33,204.27,22.57732576]
[1756483442720,0.67,204.38,204.28,22.57732576]
[1756483443042,22.57732576,204.35,204.29,22.57732576]
[1756483443344,22.57732576,204.35,204.29,27.47226287]
[1756483443732,0.67,204.43,204.33,22.57732576]
[1756483444034,22.57732576,204.41,204.29,17.81244261]
[1756483444241,22.57732576,204.4,204.34,22.57732576]
[1756483444441,22.57732576,204.41,204.36,22.57732576]
[1756483444656,22.57732576,204.37,204.26,0.03]
[1756483444880,36.17291977,204.27,204.26,0.03]
[1756483445036,22.57732576,204.27,204.26,0.03]
[1756483445241,22.57732576,204.28,204.26,0.03]
[1756483445467,22.57732576,204.27,204.26,0.03]
[1756483445872,22.57732576,204.28,204.26,0.03]
[1756483446057,22.57732576,204.27,204.26,0.03]
[1756483446448,0.67,204.32,204.26,0.03]
[1756483446648,22.57732576,204.32,204.26,22.60732576]
[1756483446850,22.57732576,204.27,204.26,0.03]
[1756483447342,23.24732576,204.27,204.26,0.03]
[1756483447542,28.14280723,204.27,204.26,0.03]
[1756483448143,41.73840124,204.27,204.26,0.03]
[1756483449360,41.73840124,204.27,204.22,6.59781759]
[1756483449361,36.17291977,204.24,204.22,6.59781759]
[1756483449546,28.14376604,204.23,204.22,6.59781759]
[1756483450448,31.53225628,204.23,204.22,6.59781759]
[1756483450644,45.27001186,204.23,204.22,6.59781759]
[1756483450848,45.27001186,204.23,203.98,1.26911198]
[1756483450849,26.0,204.18,203.98,1.26911198]
[1756483451050,22.57732576,204.01,203.98,1.26911198]
[1756483451459,41.74464027,204.01,203.98,1.26911198]
[1756483451844,41.74464027,204.01,204.0,1.0]
[1756483452053,36.84291977,204.01,204.0,1.0]
[1756483452266,50.82,204.04,204.0,1.0]
[1756483452604,36.17291977,204.01,204.0,1.0]
[1756483452894,0.67,204.1,204.0,1.0]
[1756483453191,22.57732576,204.01,204.0,1.0]
[1756483453760,0.14216157,204.13,204.0,6.58189352]
[1756483453959,22.57732576,204.08,204.02,22.57732576]
[1756483454295,22.57732576,204.03,204.0,5.90188225]
[1756483454477,22.57732576,204.03,204.01,0.68]
[1756483455199,22.57732576,204.02,204.0,1.0]
[1756483455366,22.57732576,204.01,204.0,1.0]
[1756483455566,88.00508134,204.01,204.0,1.0]
[1756483455778,22.57732576,204.01,204.0,1.0]
[1756483455960,36.17291977,203.99,203.98,1.26911198]
[1756483456168,51.24,204.01,203.98,1.26911198]
[1756483456489,36.17291977,203.99,203.98,1.26911198]
[1756483456696,13.73775558,203.98,203.93,5.0]
[1756483456868,36.17291977,203.94,203.93,5.0]
[1756483457064,36.98508134,203.94,203.93,4.57]
[1756483457585,93.2284843,203.94,203.93,4.57]
[1756483458162,13.73775558,203.93,203.9,0.07865297]
[1756483458365,22.71948733,203.91,203.9,0.07865297]
[1756483458963,36.89508134,203.91,203.9,0.07865297]
[1756483459172,88.15508134,203.91,203.9,0.07865297]
[1756483459371,0.14216157,203.93,203.8,0.68]
[1756483459580,22.57732576,203.82,203.8,0.68]
[1756483459803,22.57732576,203.81,203.79,0.1]
[1756483460097,22.57732576,203.8,203.79,0.1]
[1756483460401,36.17291977,203.8,203.79,0.1]
[1756483460701,51.44,203.83,203.79,0.78]
[1756483460888,22.57732576,203.8,203.79,0.78]
[1756483461089,36.17291977,203.8,203.79,0.1]
[1756483461286,22.57732576,203.8,203.79,0.1]
[1756483461587,0.14216157,203.87,203.79,0.1]
[1756483461588,39.73775558,203.87,203.79,0.1]
[1756483461777,51.48,203.86,203.79,5.00701188]
[1756483461976,13.73775558,203.91,203.79,0.1]
[1756483462174,22.57732576,203.81,203.79,0.1]
[1756483462377,22.57732576,203.8,203.79,0.1]
[1756483462984,22.57732576,203.8,203.79,0.78]
[1756483463404,17.12646502,203.8,203.79,0.78]
[1756483464402,26.0,203.9,203.79,0.78]
[1756483464403,12.25696781,203.97,203.79,5.68692813]
[1756483464710,39.59559401,203.92,203.79,0.78]
[1756483464884,17.12646502,203.81,203.79,0.78]
[1756483465391,20.0,203.95,203.79,0.78]
[1756483465392,0.58,204.06,203.83,0.14216157]
[1756483465591,5.4797991,204.09,203.9,4.90436488]
[1756483465787,5.4797991,204.09,203.91,17.80646502]
[1756483465788,17.7,204.08,203.91,17.80646502]
[1756483465997,2.92611249,204.14,203.97,17.12646502]
[1756483465998,4.898599,204.14,203.97,17.12646502]
[1756483466189,5.47854299,204.15,203.98,0.68]
[1756483466397,5.07985032,204.21,204.01,26.0]
[1756483466598,5.07985032,204.21,204.02,0.49014802]
[1756483466807,0.58,204.2,204.02,0.68]
[1756483467006,52.78,204.19,204.02,0.68]
[1756483467190,52.84,204.18,204.02,0.68]
[1756483467503,17.12646502,204.04,204.02,0.68]
[1756483467678,0.14216157,204.11,203.93,26.49036434]
[1756483467878,67.13559401,204.1,203.87,4.90508657]
[1756483468083,0.58,204.09,203.93,0.68]
[1756483468379,13.59559401,204.09,203.93,52.68]
[1756483468581,0.72216157,204.08,203.94,0.68]
[1756483468819,13.59559401,204.01,203.9,0.68]
[1756483469021,17.12646502,203.91,203.87,0.68]
[1756483469188,0.58,204.01,203.76,20.0]
[1756483469189,52.98,204.03,203.9,17.12646502]
[1756483469509,22.66864945,203.91,203.86,0.68]
[1756483469682,22.66864945,203.87,203.82,0.68]
[1756483469898,13.59559401,203.96,203.83,0.68]
[1756483470116,22.66864945,203.88,203.83,0.68]
[1756483470316,0.58,203.95,203.79,22.76864945]
[1756483470494,22.66864945,203.83,203.79,0.1]
[1756483470823,22.66864945,203.83,203.8,0.71]
[1756483471034,0.58,203.92,203.8,0.71]
[1756483471203,22.66864945,203.83,203.8,0.71]
[1756483471397,22.66864945,203.81,203.79,0.1]
[1756483471615,22.66864945,203.83,203.79,0.81]
[1756483471918,4.90479209,203.89,203.8,0.71]
[1756483472126,4.90422551,203.91,203.8,0.71]
[1756483472296,53.04,203.94,203.81,22.66864945]
[1756483472613,22.66864945,203.88,203.81,22.66864945]
[1756483472806,22.66864945,203.88,203.82,23.37864945]
[1756483473005,22.66864945,203.83,203.79,0.1]
[1756483473217,22.66864945,203.82,203.79,0.1]
[1756483473623,4.90436488,203.9,203.8,0.71]
[1756483473804,17.15973415,203.97,203.8,0.71]
[1756483474000,22.66864945,203.88,203.82,22.66864945]
[1756483474321,47.28,203.98,203.85,22.66864945]
[1756483474524,22.66864945,203.9,203.86,0.71]
[1756483474910,4.90217901,204.0,203.87,0.71]
[1756483475217,4.90217901,204.0,203.88,22.66864945]
[1756483475411,22.66864945,203.94,203.88,22.66864945]
[1756483475614,22.66864945,203.93,203.87,23.37864945]
[1756483475810,0.58,204.08,203.94,26.0]
[1756483476020,4.89907897,204.12,203.97,22.66864945]
[1756483476224,22.66864945,204.04,203.98,22.66864945]
[1756483476417,22.66864945,204.04,203.99,0.71]
[1756483476612,4.89907897,204.12,203.98,22.66864945]
[1756483476926,22.66864945,204.06,204.0,23.37864945]
[1756483477239,22.66864945,204.06,204.01,0.71]
[1756483477450,22.66864945,204.08,204.02,22.66864945]
[1756483477745,4.90148024,204.02,203.77,20.03]
[1756483477910,13.59559401,203.95,203.81,0.71]
[1756483478110,26.0,203.9,203.77,0.03]
[1756483478343,22.66864945,203.85,203.79,0.81]
[1756483478513,26.36791161,204.01,203.83,22.66864945]
[1756483478713,22.66864945,203.84,203.79,0.1]
[1756483478911,26.0,203.83,203.79,0.1]
[1756483479220,26.0,203.81,203.79,0.1]
[1756483479736,4.90628986,203.82,203.79,0.1]
[1756483479906,22.66864945,203.8,203.79,0.1]
[1756483482035,23.24864945,203.8,203.79,0.1]
[1756483482236,22.66864945,203.8,203.79,0.1]
[1756483482748,36.84424346,203.8,203.79,0.1]
[1756483482921,45.10648168,203.8,203.79,0.1]
[1756483483236,45.10981904,203.8,203.64,0.08160927]
[1756483483426,26.0,203.65,203.64,0.79160927]
[1756483483625,22.66864945,203.65,203.64,0.08160927]
[1756483483837,22.66864945,203.67,203.64,0.79160927]
[1756483484060,22.66864945,203.65,203.64,0.08160927]
[1756483484232,0.58,203.8,203.65,0.71]
[1756483484418,26.0,203.76,203.65,0.71]
[1756483484618,22.66864945,203.7,203.65,0.71]
[1756483485019,26.58,203.76,203.64,0.08160927]
[1756483485216,66.33559401,203.79,203.64,0.08160927]
[1756483485217,22.66864945,203.65,203.64,0.08160927]
[1756483485444,26.0,203.54,203.38,0.79456556]
[1756483485616,48.66864945,203.53,203.42,0.71]
[1756483485934,49.24864945,203.53,203.38,0.79456556]
[1756483486132,26.0,203.48,203.38,0.79456556]
[1756483486316,26.0,203.48,203.38,0.08456556]
[1756483486517,0.58,203.51,203.38,0.08456556]
[1756483486819,26.0,203.56,203.43,22.66864945]
[1756483487038,13.59559401,203.51,203.42,0.71]
[1756483487244,14.17559401,203.55,203.42,0.71]
[1756483487245,13.92933007,203.78,203.5,22.66864945]
[1756483487411,3.34635722,203.77,203.74,22.66864945]
[1756483487748,2.56410918,203.85,203.75,0.71]
[1756483487936,20.0,203.78,203.52,0.4913522]
[1756483488235,16.84,203.84,203.58,0.71]
[1756483488236,3.92920025,203.77,203.58,0.71]
[1756483488417,22.66864945,203.72,203.58,0.71]
[1756483488616,22.66864945,203.6,203.58,0.71]
[1756483488824,13.59559401,203.67,203.52,0.71]
[1756483489025,56.26,203.66,203.52,0.71]
[1756483489229,22.66864945,203.56,203.52,0.71]
[1756483489530,22.66864945,203.53,203.51,2.56246469]
[1756483489737,22.66864945,203.55,203.52,0.71]
[1756483489941,56.24,203.66,203.54,22.66864945]
[1756483490136,26.02083507,203.65,203.55,0.71]
[1756483490353,56.24,203.71,203.56,0.49125564]
[1756483490525,22.66864945,203.67,203.6,22.66864945]
[1756483490725,22.66864945,203.68,203.61,23.37864945]
[1756483490925,0.58,203.79,203.61,23.37864945]
[1756483491148,22.66864945,203.74,203.66,22.66864945]
[1756483491344,22.66864945,203.72,203.65,23.37864945]
[1756483491538,22.66864945,203.66,203.62,0.49111089]
[1756483491728,22.66864945,203.63,203.54,23.37864945]
[1756483491930,0.58,203.78,203.62,22.66864945]
[1756483492153,22.66864945,203.74,203.63,1.20108677]
[1756483492326,22.66864945,203.74,203.68,22.66864945]
[1756483492526,0.58,203.87,203.65,0.49103854]
[1756483492763,6.7283893,203.86,203.73,22.66864945]
[1756483493055,22.66864945,203.8,203.74,23.37864945]
[1756483493227,22.66864945,203.8,203.74,0.71]
[1756483493431,22.66864945,203.79,203.74,0.71]
[1756483493752,26.0,203.7,203.53,0.71]
[1756483493956,26.0,203.68,203.53,0.71]
[1756483494136,22.66864945,203.54,203.48,0.71]
[1756483494342,22.66864945,203.58,203.51,22.66864945]
[1756483494542,22.66864945,203.55,203.48,0.71]
[1756483494734,13.59559401,203.61,203.48,0.71]
[1756483494937,22.66864945,203.49,203.44,0.71]
[1756483495149,26.0,203.58,203.45,0.71]
[1756483495150,22.66864945,203.48,203.45,0.71]
[1756483495349,22.66864945,203.47,203.41,1.01]
[1756483495648,82.5,203.58,203.41,1.01]
[1756483495649,22.66864945,203.45,203.41,0.3]
[1756483495855,22.66864945,203.42,203.41,0.3]
[1756483496049,30.91464535,203.48,203.41,0.3]
[1756483496251,22.66864945,203.42,203.41,0.33]
[1756483496829,26.0,203.46,203.41,0.33]
[1756483497049,22.66864945,203.42,203.41,0.33]
[1756483497875,23.24864945,203.42,203.41,0.33]
[1756483498044,22.66864945,203.42,203.41,0.33]
[1756483498245,119.34640503,203.42,203.41,0.33]
[1756483498566,26.58,203.42,203.41,0.33]
[1756483498770,62.84424346,203.42,203.41,0.33]
[1756483499272,13.59559401,203.39,203.38,0.08456556]
[1756483499570,22.66864945,203.39,203.38,0.08456556]
[1756483499741,82.28,203.46,203.38,0.08456556]
[1756483499946,22.66864945,203.39,203.38,0.08456556]
[1756483500148,0.21324235,203.67,203.38,5.71137088]
[1756483500149,0.58,203.54,203.38,5.71137088]
[1756483500354,22.66864945,203.39,203.38,0.08456556]
[1756483500552,20.0,203.38,203.17,268.78]
[1756483500874,22.66864945,203.36,203.29,22.66864945]
[1756483501170,22.66864945,203.39,203.33,22.66864945]
[1756483501373,20.0,203.45,203.34,0.49178715]
[1756483501552,20.0,203.45,203.23,13.73775558]
[1756483501553,22.66864945,203.37,203.23,13.73775558]
[1756483501876,20.0,203.47,203.36,22.66864945]
[1756483502047,20.0,203.36,203.29,4.91908111]
[1756483502246,22.66864945,203.34,203.29,4.91908111]
[1756483502557,20.0,203.39,203.32,22.66864945]
[1756483502744,20.0,203.39,203.3,1.20188391]
[1756483502945,22.66864945,203.41,203.31,0.14216157]
[1756483503159,20.7,203.46,203.37,22.66864945]
[1756483503376,20.0,203.46,203.4,22.66864945]
[1756483503561,2.5654635,203.45,203.43,22.66864945]
[1756483503866,2.5654635,203.45,203.44,4.91545418]
[1756483504076,2.5654635,203.45,203.44,5.62545418]
[1756483504480,20.0,203.56,203.48,22.66864945]
[1756483504678,20.0,203.65,203.55,22.66864945]
[1756483504888,20.0,203.71,203.62,22.66864945]
[1756483505172,22.66864945,203.63,203.56,0.71]
[1756483505376,20.0,203.64,203.57,22.66864945]
[1756483505551,20.2,203.7,203.61,22.66864945]
[1756483505751,22.66864945,203.63,203.53,0.14216157]
[1756483506054,22.66864945,203.63,203.47,26.0]
[1756483506055,22.66864945,203.54,203.47,0.71]
[1756483506271,20.0,203.52,203.45,4.91521258]
[1756483506463,22.66864945,203.46,203.38,0.71]
[1756483506663,20.0,203.5,203.42,22.66864945]
[1756483506873,20.0,203.54,203.49,22.66864945]
[1756483507055,22.66864945,203.53,203.47,22.66864945]
[1756483507263,20.0,203.55,203.49,22.66864945]
[1756483507465,20.0,203.55,203.51,22.66864945]
[1756483507666,20.0,203.67,203.55,0.14216157]
[1756483507888,0.2,203.7,203.65,4.91038546]
[1756483508183,20.0,203.68,203.59,4.9118326]
[1756483508378,20.0,203.66,203.61,22.66864945]
[1756483508559,22.66864945,203.63,203.59,4.9118326]
[1756483508956,20.0,203.66,203.61,22.66864945]
[1756483509262,42.66864945,203.66,203.6,22.66864945]
[1756483509459,0.2,203.7,203.65,22.66864945]
[1756483509700,1e-08,203.7,203.69,22.66864945]
[1756483509976,0.06,203.78,203.71,0.14216157]
[1756483510195,0.06,203.81,203.77,22.66864945]
[1756483510356,20.0,203.95,203.82,22.66864945]
[1756483510551,22.66864945,203.93,203.87,22.66864945]
[1756483510757,2.56166075,203.98,203.88,23.37864945]
[1756483510956,2.56166075,203.98,203.88,0.71]
[1756483510957,22.66864945,203.94,203.88,0.71]
[1756483511255,20.7,204.06,203.93,22.66864945]
[1756483511480,20.0,204.1,203.97,22.66864945]
[1756483511683,6.70975954,204.09,203.99,22.66864945]
[1756483511984,20.0,203.98,203.91,4.90412436]
[1756483512174,20.0,203.95,203.89,4.90446809]
[1756483512480,20.0,204.03,203.89,17.16598165]
[1756483512780,22.66864945,203.96,203.9,0.71]
[1756483513095,20.0,203.97,203.84,4.90572531]
[1756483513298,20.0,203.99,203.85,0.49055678]
[1756483513458,20.0,203.95,203.92,22.66864945]
[1756483513657,20.0,203.95,203.84,0.71]
[1756483513891,20.0,203.93,203.8,0.49067713]
[1756483514067,20.0,203.91,203.79,1.20070121]
[1756483514268,20.0,203.97,203.81,26.0]
[1756483514573,42.66864945,203.94,203.82,1.20062898]
[1756483514760,42.66864945,203.94,203.77,61.28742794]
[1756483514761,42.66864945,203.92,203.86,22.66864945]
[1756483514966,42.66864945,203.92,203.71,12.27223722]
[1756483514967,20.0,203.86,203.82,22.66864945]
[1756483515166,20.0,203.83,203.72,0.71]
[1756483515375,20.0,203.83,203.81,22.66864945]
[1756483515673,20.0,203.81,203.72,0.71]
[1756483515864,20.0,203.84,203.8,22.66864945]
[1756483516185,20.0,203.84,203.73,4.90840514]
[1756483516186,20.0,203.84,203.83,22.66864945]
[1756483516563,20.0,203.86,203.75,0.71]
[1756483516772,20.0,203.82,203.69,0.71]
[1756483517078,20.0,203.77,203.71,22.66864945]
[1756483517281,20.0,203.77,203.64,0.71]
[1756483517282,20.0,203.74,203.7,22.66864945]
[1756483517490,42.66864945,203.71,203.65,22.66864945]
[1756483517695,20.0,203.68,203.66,22.66864945]
[1756483518072,20.0,203.72,203.67,22.66864945]
[1756483518382,20.0,203.69,203.58,0.49120738]
[1756483518580,20.0,203.66,203.63,22.66864945]
[1756483518789,20.0,203.72,203.65,22.66864945]
[1756483518980,20.0,203.72,203.69,22.66864945]
[1756483519294,20.0,203.69,203.59,0.71]
[1756483519596,20.0,203.6,203.41,4.91617914]
[1756483519811,20.0,203.56,203.42,0.49159374]
[1756483520013,20.0,203.53,203.49,22.66864945]
[1756483520176,20.0,203.53,203.51,22.66864945]
[1756483520381,20.0,203.53,203.38,26.0]
[1756483520382,20.0,203.55,203.52,22.66864945]
[1756483520597,0.7,203.59,203.54,22.66864945]
[1756483520788,20.0,203.6,203.56,22.66864945]
[1756483520998,20.0,203.58,203.56,22.66864945]
[1756483521276,20.0,203.62,203.57,22.66864945]
[1756483521481,0.7,203.66,203.61,22.66864945]
[1756483521701,20.0,203.62,203.53,0.63348962]
[1756483521903,27.57975837,203.62,203.51,0.14216157]
[1756483522206,20.0,203.59,203.53,22.66864945]
[1756483522410,42.66864945,203.59,203.48,0.71]